[Event "Mitropa Cup Open 2019"]
[Site "Radenci"]
[Date "2019.05.28"]
[Round "2.17"]
[White "Perske, Thore"]
[Black "Nguyen, Thai Dai Van"]
[Result "0-1"]
[ECO "B91"]
[WhiteElo "2456"]
[BlackElo "2548"]
[Annotator "RC"]
[PlyCount "170"]
[EventDate "2019.05.27"]
[EventType "team-tourn"]
[EventCountry "SLO"]
[SourceTitle "playchess.com"]
[Source "ChessBase"]
[SourceQuality "1"]
[WhiteTeam "Germany"]
[BlackTeam "Czech Republic"]
[WhiteTeamCountry "GER"]
[BlackTeamCountry "CZE"]
[TimeControl "40/5400+30:1800+30"]

1. e4 {[%emt 0:00:00]} c5 {[%emt 0:00:00]} 2. Nf3 {[%emt 0:00:00]} d6 {[%emt 0:00:00]} 3. d4 {[%emt 0:00:14]} cxd4 {[%emt 0:00:00]} 4. Nxd4 {[%emt 0:00:05]} Nf6 {[%emt 0:00:05]} 5. Nc3 {[%emt 0:00:06]} a6 {[%emt 0:00:27]} 6. g3 {[%emt 0:00:28]} e5 {[%emt 0:00:28]} 7. Nde2 {[%emt 0:00:08]} Be7 {[%emt 0:00:38]} 8. Bg2 {[%emt 0:01:00]} b5 {[%emt 0:00:13]} 9. Nd5 {[%emt 0:04:03]} Nbd7 {[%emt 0:00:06]} 10. Nec3 {[%emt 0:06:10]} Nb6 {[%emt 0:00:11]} 11. Nxf6+ {[%emt 0:18:13]} Bxf6 {[%emt 0:00:06]} 12. Nd5 {[%emt 0:01:35]} Nxd5 {[%emt 0:08:54]} 13. Qxd5 {[%emt 0:00:08]} Be6 {[%emt 0:00:27]} 14. Qd2 {[%emt 0:12:28]} O-O {[%emt 0:04:37]} 15. O-O {[%emt 0:01:43]} Rc8 {[%emt 0:01:38]} 16. Rd1 {[%emt 0:06:32]} Bg4 {[%emt 0:23:33]} 17. Re1 {[%emt 0:02:45]} Qc7 {[%emt 0:09:54]} 18. c3 {[%emt 0:01:35]} Rfd8 {[%emt 0:00:04]} 19. Qd3 {[%emt 0:03:22]} Qc4 {[%emt 0:04:56]} 20. Qxc4 {[%emt 0:01:04]} bxc4 {[%emt 0:01:58]} 21. Be3 {[%emt 0:00:37]} Rb8 {[%emt 0:01:44]} 22. Reb1 {[%emt 0:01:14]} Be6 {[%emt 0:13:42]} 23. b3 {[%emt 0:03:55]} Kf8 {[%emt 0:07:16]} 24. bxc4 {[%emt 0:02:16]} Bxc4 {[%emt 0:00:27]} 25. Rb4 {[%emt 0:05:56]} Rdc8 {[%emt 0:00:30]} 26. Bh3 {[%emt 0:10:11]} Be6 {[%emt 0:01:12]} 27. Bf1 {[%emt 0:00:44]} a5 {[%emt 0:01:07]} 28. Rxb8 {[%emt 0:01:16]} Rxb8 {[%emt 0:00:04]} 29. a4 {[%emt 0:00:42]} Bd8 {[%emt 0:02:18]} 30. Bb5 {[%emt 0:04:39]} Rc8 {[%emt 0:02:56]} 31. Bd2 {[%emt 0:05:53]} Bc4 {[%emt 0:00:16]} 32. Bxc4 {[%emt 0:01:22]} Rxc4 {[%emt 0:00:05]} 33. f3 {[%emt 0:00:03]} Ke7 {[%emt 0:00:54]} 34. Kf2 {[%emt 0:00:04]} Ke6 {[%emt 0:01:05]} 35. Ke3 {[%emt 0:01:31]} d5 {[%emt 0:01:22]} 36. Kd3 {[%emt 0:00:05]} f5 {[%emt 0:01:25]} 37. exd5+ {[%emt 0:00:05]} Kxd5 {[%emt 0:00:03]} 38. Kc2 {[%emt 0:00:33]} e4 {[%emt 0:08:31]} 39. Rd1 {[%emt 0:03:35]} Ke6 {[%emt 0:01:35]} 40. Kb3 {[%emt 0:00:00]} Rc8 {[%emt 0:00:00]} 41. Re1 {[%emt 0:17:31]} Kd5 {[%emt 0:02:52]} 42. fxe4+ {[%emt 0:03:14]} fxe4 {[%emt 0:00:12]} 43. Rd1 {[%emt 0:03:00]} Bf6 {[%emt 0:05:18]} 44. Bf4+ {[%emt 0:06:27]} Ke6 {[%emt 0:00:13]} 45. c4 {[%emt 0:00:05]} g5 {[%emt 0:02:02]} 46. Bd2 {[%emt 0:03:43]} Rb8+ {[%emt 0:00:46]} 47. Kc2 {[%emt 0:00:02]} Rb2+ {[%emt 0:00:32]} 48. Kc1 {[%emt 0:00:01]} Ra2 {[%emt 0:00:51]} 49. Re1 {[%emt 0:02:15]} Rxa4 {[%emt 0:01:28]} 50. Rxe4+ {[%emt 0:00:02]} Kf5 {[%emt 0:00:06]} 51. Re3 {[%emt 0:00:04]} Rxc4+ {[%emt 0:00:06]} 52. Kb1 {[%emt 0:00:12]} a4 {[%emt 0:00:39]} 53. Rf3+ {[%emt 0:00:17]} Ke6 {[%emt 0:00:40]} 54. h3 {[%emt 0:00:06]} h5 {[%emt 0:02:59]} 55. Re3+ {[%emt 0:00:07]} Kf5 {[%emt 0:00:08]} 56. Rf3+ {[%emt 0:00:11]} Kg6 {[%emt 0:00:11]} 57. Re3 {[%emt 0:01:19]} g4 {[%emt 0:07:27]} 58. hxg4 {[%emt 0:00:04]} hxg4 {[%emt 0:01:06]} 59. Re1 {[%emt 0:02:23]} Bg5 {[%emt 0:08:27]} 60. Bxg5 {[%emt 0:01:11]} Kxg5 {[%emt 0:00:07]} 61. Kb2 {[%emt 0:01:02]} Rb4+ {[%emt 0:00:23]} 62. Kc2 {[%emt 0:00:01]} Rb5 {[%emt 0:02:32]} 63. Re4 {[%emt 0:00:24]} Ra5 {[%emt 0:01:57]} 64. Kb2 {[%emt 0:01:04]} a3+ {[%emt 0:00:11]} 65. Ka2 {[%emt 0:00:01]} Rf5 {[%emt 0:00:29]} 66. Re8 {[%emt 0:01:14]} Rf3 {[%emt 0:00:44]} 67. Rg8+ {[%emt 0:00:06]} Kf5 {[%emt 0:00:02]} 68. Rf8+ {[%emt 0:00:06]} Ke4 {[%emt 0:00:07]} 69. Re8+ {[%emt 0:00:05]} Kd4 {[%emt 0:00:08]} 70. Rd8+ {[%emt 0:00:14]} Ke3 {[%emt 0:00:06]} 71. Kxa3 {[%emt 0:00:07]} Kf2+ {[%emt 0:00:29]} 72. Kb2 {[%emt 0:00:05]} Kxg3 {[%emt 0:00:21]} 73. Kc2 {[%emt 0:00:05]} Kf2 {[%emt 0:00:31]} 74. Rd2+ {[%emt 0:00:11]} Kg1 {[%emt 0:00:13]} 75. Rd1+ {[%emt 0:00:06]} Kg2 {[%emt 0:01:23]} 76. Kd2 {[%emt 0:00:06]} g3 {[%emt 0:00:24]} 77. Ke2 {[%emt 0:00:06]} Rf8 {[%emt 0:00:08]} 78. Rd5 {[%emt 0:00:14]} Re8+ {[%emt 0:00:06]} 79. Kd2 {[%emt 0:00:05]} Kf2 {[%emt 0:00:12]} 80. Rf5+ {[%emt 0:00:07]} Kg1 {[%emt 0:00:06]} 81. Rg5 {[%emt 0:00:34]} g2 {[%emt 0:00:05]} 82. Rf5 {[%emt 0:00:10]} Kh2 {[%emt 0:00:25]} 83. Rh5+ {[%emt 0:00:05]} Kg3 {[%emt 0:00:03]} 84. Rg5+ {[%emt 0:00:05]} Kf3 {[%emt 0:00:19]} 85. Kd1 {[%emt 0:00:28]} Re4 {[%emt 0:00:08]} 0-1

[Event "Mitropa Cup Open 2019"]
[Site "Radenci"]
[Date "2019.05.30"]
[Round "4.2"]
[White "Pelletier, Yannick"]
[Black "Nagy, Gabor"]
[Result "1-0"]
[ECO "D50"]
[WhiteElo "2547"]
[BlackElo "2471"]
[Annotator "RC"]
[PlyCount "69"]
[EventDate "2019.05.27"]
[EventType "team-tourn"]
[EventCountry "SLO"]
[SourceTitle "playchess.com"]
[Source "ChessBase"]
[SourceQuality "1"]
[WhiteTeam "SUI"]
[BlackTeam "HUN"]
[BlackTeamCountry "HUN"]
[TimeControl "40/5400+30:1800+30"]

1. d4 {[%emt 0:01:09]} Nf6 {[%emt 0:00:00]} 2. c4 {[%emt 0:00:09]} e6 {[%emt 0:00:29]} 3. Nc3 {[%emt 0:00:07]} d5 {[%emt 0:00:34]} 4. Bg5 {[%emt 0:04:50]} dxc4 {[%emt 0:08:16]} 5. e4 {[%emt 0:15:13]} c5 {[%emt 0:04:24]} 6. d5 {[%emt 0:00:40]} Be7 {[%emt 0:03:31]} 7. Bxf6 {[%emt 0:26:31]} Bxf6 {[%emt 0:00:49]} 8. Bxc4 {[%emt 0:00:04]} exd5 {[%emt 0:05:00]} 9. exd5 {[%emt 0:01:34]} O-O {[%emt 0:01:16]} 10. Nge2 {[%emt 0:00:03]} Nd7 {[%emt 0:01:30]} 11. O-O {[%emt 0:01:30]} Ne5 {[%emt 0:00:59]} 12. Bb3 {[%emt 0:01:58]} Bg4 {[%emt 0:03:38]} 13. h3 {[%emt 0:05:16]} c4 {[%emt 0:09:38]} 14. hxg4 {[%emt 0:07:50]} cxb3 {[%emt 0:00:13]} 15. g5 {[%emt 0:00:02]} Bxg5 {[%emt 0:03:44]} 16. f4 {[%emt 0:02:03]} Bh6 {[%emt 0:00:41]} 17. fxe5 {[%emt 0:01:26]} Be3+ {[%emt 0:00:22]} 18. Rf2 {[%emt 0:00:02]} Qh4 {[%emt 0:00:58]} 19. g3 {[%emt 0:05:13]} Bxf2+ {[%emt 0:03:02]} 20. Kxf2 {[%emt 0:00:04]} Qh2+ {[%emt 0:00:19]} 21. Kf3 {[%emt 0:05:50]} Qh5+ {[%emt 0:00:17]} 22. Kg2 {[%emt 0:01:01]} Qxe5 {[%emt 0:02:02]} 23. axb3 {[%emt 0:00:35]} a6 {[%emt 0:01:20]} 24. Ra4 {[%emt 0:00:50]} Rad8 {[%emt 0:00:54]} 25. Re4 {[%emt 0:01:05]} Qd6 {[%emt 0:00:44]} 26. Qd4 {[%emt 0:00:36]} Rfe8 {[%emt 0:00:33]} 27. Nf4 {[%emt 0:05:15]} f5 {[%emt 0:03:09]} 28. Rxe8+ {[%emt 0:03:23]} Rxe8 {[%emt 0:00:11]} 29. b4 {[%emt 0:00:32]} g5 {[%emt 0:03:28]} 30. Nd3 {[%emt 0:02:34]} b6 {[%emt 0:00:13]} 31. g4 {[%emt 0:02:46]} Qg6 {[%emt 0:04:33]} 32. d6 {[%emt 0:01:10]} Rd8 {[%emt 0:01:18]} 33. d7 {[%emt 0:00:31]} fxg4 {[%emt 0:02:36]} 34. Ne5 {[%emt 0:02:11]} Qe6 {[%emt 0:02:30]} 35. Qd5 {[%emt 0:00:27]} 1-0

[Event "Mitropa Cup Open 2019"]
[Site "Radenci"]
[Date "2019.05.30"]
[Round "4.3"]
[White "Kozak, Adam"]
[Black "Gaehwiler, Gabriel"]
[Result "1/2-1/2"]
[ECO "A30"]
[WhiteElo "2458"]
[BlackElo "2431"]
[Annotator "ChessBase"]
[PlyCount "111"]
[EventDate "2019.05.27"]
[EventType "team-tourn"]
[EventCountry "SLO"]
[SourceTitle "playchess.com"]
[Source "ChessBase"]
[SourceQuality "1"]
[WhiteTeam "Hungary"]
[BlackTeam "Switzerland"]
[WhiteTeamCountry "HUN"]
[BlackTeamCountry "SUI"]
[TimeControl "40/5400+30:1800+30"]

1. Nf3 {[%emt 0:00:00]} Nf6 {[%emt 0:01:34]} 2. g3 {[%emt 0:00:00]} g6 {[%emt 0:02:58]} 3. b3 {[%emt 0:00:10]} Bg7 {[%emt 0:00:08]} 4. Bb2 {[%emt 0:00:06]} O-O {[%emt 0:03:32]} 5. Bg2 {[%emt 0:00:42]} c5 {[%emt 0:00:45]} 6. c4 {[%emt 0:01:06]} Nc6 {[%emt 0:02:33]} 7. O-O {[%emt 0:01:49]} b6 {[%emt 0:02:33]} 8. d4 {[%emt 0:02:11]} cxd4 {[%emt 0:01:03]} 9. Nxd4 {[%emt 0:00:15]} Bb7 {[%emt 0:00:04]} 10. Nc3 {[%emt 0:00:52]} Qc8 {[%emt 0:09:56]} 11. Nf3 {[%emt 0:05:09]} d6 {[%emt 0:06:48]} 12. Rc1 {[%emt 0:01:33]} Ne5 {[%emt 0:05:24]} 13. Nd5 {[%emt 0:08:34]} Nxd5 {[%emt 0:15:45]} 14. cxd5 {[%emt 0:00:58]} Nxf3+ {[%emt 0:00:11]} 15. Bxf3 {[%emt 0:00:25]} Bxb2 {[%emt 0:00:14]} 16. Rxc8 {[%emt 0:00:12]} Raxc8 {[%emt 0:00:05]} 17. Qd2 {[%emt 0:02:41]} Bc3 {[%emt 0:00:44]} 18. Qe3 {[%emt 0:04:22]} Bf6 {[%emt 0:02:30]} 19. Rc1 {[%emt 0:01:34]} Rxc1+ {[%emt 0:03:26]} 20. Qxc1 {[%emt 0:00:22]} Rc8 {[%emt 0:00:07]} 21. Qa3 {[%emt 0:11:51]} a5 {[%emt 0:03:19]} 22. b4 {[%emt 0:04:45]} Bc3 {[%emt 0:19:35]} 23. bxa5 {[%emt 0:02:14]} Bxa5 {[%emt 0:03:51]} 24. Qa4 {[%emt 0:01:43]} Rc5 {[%emt 0:02:36]} 25. Qe8+ {[%emt 0:13:01]} Kg7 {[%emt 0:00:03]} 26. Qxe7 {[%emt 0:00:10]} Bxd5 {[%emt 0:00:59]} 27. Bxd5 {[%emt 0:03:59]} Rxd5 {[%emt 0:00:05]} 28. Qe3 {[%emt 0:00:42]} Rd2 {[%emt 0:05:38]} 29. a4 {[%emt 0:02:45]} Ra2 {[%emt 0:01:26]} 30. Qd4+ {[%emt 0:00:22]} Kg8 {[%emt 0:00:06]} 31. Kf1 {[%emt 0:00:08]} Rd2 {[%emt 0:00:40]} 32. Qe4 {[%emt 0:01:13]} d5 {[%emt 0:00:48]} 33. Qe8+ {[%emt 0:00:33]} Kg7 {[%emt 0:00:05]} 34. Qe5+ {[%emt 0:00:02]} Kg8 {[%emt 0:00:06]} 35. g4 {[%emt 0:01:33]} Ra2 {[%emt 0:04:34]} 36. h4 {[%emt 0:00:49]} Kf8 {[%emt 0:01:24]} 37. Qd4 {[%emt 0:07:05]} Kg8 {[%emt 0:02:04]} 38. h5 {[%emt 0:03:47]} gxh5 {[%emt 0:00:29]} 39. gxh5 {[%emt 0:00:01]} h6 {[%emt 0:00:34]} 40. Qe5 {[%emt 0:00:00]} Bb4 {[%emt 0:00:00]} 41. Qg3+ {[%emt 0:11:37]} Kf8 {[%emt 0:05:37]} 42. Qb8+ {[%emt 0:00:21]} Kg7 {[%emt 0:01:05]} 43. Qxb6 {[%emt 0:01:54]} Bc3 {[%emt 0:01:01]} 44. Qb5 {[%emt 0:03:35]} d4 {[%emt 0:04:05]} 45. Kg2 {[%emt 0:00:54]} Rb2 {[%emt 0:00:39]} 46. Qe5+ {[%emt 0:04:20]} Kg8 {[%emt 0:00:59]} 47. Qg3+ {[%emt 0:00:37]} Kh7 {[%emt 0:05:18]} 48. Qc7 {[%emt 0:05:20]} Kg7 {[%emt 0:01:26]} 49. Qe5+ {[%emt 0:06:02]} Kg8 {[%emt 0:01:45]} 50. a5 {[%emt 0:00:26]} Ra2 {[%emt 0:03:49]} 51. Qg3+ {[%emt 0:00:17]} Kh8 {[%emt 0:01:06]} 52. Qd6 {[%emt 0:00:06]} Rxa5 {[%emt 0:00:43]} 53. Qf8+ {[%emt 0:00:05]} Kh7 {[%emt 0:00:10]} 54. Qxf7+ {[%emt 0:00:02]} Kh8 {[%emt 0:00:04]} 55. Qf6+ {[%emt 0:00:07]} Kh7 {[%emt 0:00:33]} 56. Qg6+ {[%emt 0:00:34]} 1/2-1/2

[Event "Mitropa Cup Open 2019"]
[Site "Radenci"]
[Date "2019.05.30"]
[Round "4.4"]
[White "Stijve, Theo"]
[Black "Csiki, Endre"]
[Result "1-0"]
[ECO "B46"]
[WhiteElo "2310"]
[BlackElo "2362"]
[Annotator "ChessBase"]
[PlyCount "77"]
[EventDate "2019.05.27"]
[EventType "team-tourn"]
[EventCountry "SLO"]
[SourceTitle "playchess.com"]
[Source "ChessBase"]
[SourceQuality "1"]
[WhiteTeam "Switzerland"]
[BlackTeam "Hungary"]
[WhiteTeamCountry "SUI"]
[BlackTeamCountry "HUN"]
[TimeControl "40/5400+30:1800+30"]

1. e4 {[%emt 0:00:01]} c5 {[%emt 0:00:00]} 2. Nf3 {[%emt 0:00:08]} e6 {[%emt 0:00:00]} 3. d4 {[%emt 0:00:08]} cxd4 {[%emt 0:00:00]} 4. Nxd4 {[%emt 0:00:10]} Nc6 {[%emt 0:00:00]} 5. Nc3 {[%emt 0:00:08]} a6 {[%emt 0:00:00]} 6. Be3 {[%emt 0:00:09]} Nf6 {[%emt 0:00:00]} 7. Qd2 {[%emt 0:01:13]} e5 {[%emt 0:00:20]} 8. Nxc6 {[%emt 0:10:23]} bxc6 {[%emt 0:01:13]} 9. a3 {[%emt 0:05:08]} Be7 {[%emt 0:09:45]} 10. Be2 {[%emt 0:13:46]} d5 {[%emt 0:25:18]} 11. exd5 {[%emt 0:16:23]} cxd5 {[%emt 0:00:37]} 12. Bg5 {[%emt 0:02:58]} d4 {[%emt 0:09:40]} 13. Bxf6 {[%emt 0:05:40]} gxf6 {[%emt 0:08:16]} 14. Bf3 {[%emt 0:09:21]} Rb8 {[%emt 0:01:47]} 15. Nd5 {[%emt 0:02:26]} Rxb2 {[%emt 0:06:09]} 16. O-O {[%emt 0:04:42]} Bb7 {[%emt 0:04:19]} 17. Qc1 {[%emt 0:02:25]} Rb5 {[%emt 0:04:57]} 18. c4 {[%emt 0:05:02]} dxc3 {[%emt 0:00:49]} 19. Nxe7 {[%emt 0:03:16]} Bxf3 {[%emt 0:00:25]} 20. Qxc3 {[%emt 0:00:58]} Bb7 {[%emt 0:11:01]} 21. Nf5 {[%emt 0:00:55]} Rg8 {[%emt 0:00:32]} 22. f3 {[%emt 0:07:28]} Rg5 {[%emt 0:03:17]} 23. Ng3 {[%emt 0:02:42]} Qd4+ {[%emt 0:03:59]} 24. Qxd4 {[%emt 0:00:06]} exd4 {[%emt 0:00:05]} 25. Ne4 {[%emt 0:01:37]} Bxe4 {[%emt 0:00:19]} 26. fxe4 {[%emt 0:00:01]} Ke7 {[%emt 0:01:55]} 27. Rad1 {[%emt 0:03:12]} Rb2 {[%emt 0:00:06]} 28. Rf2 {[%emt 0:00:12]} Rxf2 {[%emt 0:00:25]} 29. Kxf2 {[%emt 0:00:01]} Ra5 {[%emt 0:00:24]} 30. Rxd4 {[%emt 0:01:26]} Rxa3 {[%emt 0:00:10]} 31. Rd5 {[%emt 0:01:04]} Kf8 {[%emt 0:01:29]} 32. g3 {[%emt 0:01:06]} a5 {[%emt 0:00:44]} 33. Kg2 {[%emt 0:00:28]} a4 {[%emt 0:00:20]} 34. Ra5 {[%emt 0:00:18]} Ra1 {[%emt 0:03:40]} 35. e5 {[%emt 0:01:11]} f5 {[%emt 0:03:17]} 36. Kf3 {[%emt 0:00:22]} a3 {[%emt 0:00:27]} 37. Kf4 {[%emt 0:00:41]} a2 {[%emt 0:02:10]} 38. Kg5 {[%emt 0:00:11]} Kg7 {[%emt 0:00:12]} 39. Ra7 {[%emt 0:01:17]} 1-0

[Event "Mitropa Cup Open 2019"]
[Site "Radenci"]
[Date "2019.05.30"]
[Round "4.5"]
[White "Sebenik, Matej"]
[Black "Jovanic, Ognjen"]
[Result "1/2-1/2"]
[ECO "D15"]
[WhiteElo "2522"]
[BlackElo "2511"]
[Annotator "RC"]
[PlyCount "89"]
[EventDate "2019.05.27"]
[EventType "team-tourn"]
[EventCountry "SLO"]
[SourceTitle "playchess.com"]
[Source "ChessBase"]
[SourceQuality "1"]
[WhiteTeam "Slovenia"]
[BlackTeam "Croatia"]
[WhiteTeamCountry "SLO"]
[BlackTeamCountry "CRO"]
[TimeControl "40/5400+30:1800+30"]

1. d4 {[%emt 0:00:00]} d5 {[%emt 0:00:00]} 2. c4 {[%emt 0:00:00]} c6 {[%emt 0:00:00]} 3. Nc3 {[%emt 0:00:16]} Nf6 {[%emt 0:01:17]} 4. e3 {[%emt 0:00:12]} a6 {[%emt 0:00:50]} 5. Nf3 {[%emt 0:00:25]} Bf5 {[%emt 0:00:39]} 6. Ne5 {[%emt 0:02:16]} Nbd7 {[%emt 0:01:33]} 7. Qb3 {[%emt 0:01:08]} Qc7 {[%emt 0:00:23]} 8. cxd5 {[%emt 0:01:00]} Nxe5 {[%emt 0:01:18]} 9. dxe5 {[%emt 0:00:07]} Nxd5 {[%emt 0:00:12]} 10. Nxd5 {[%emt 0:00:31]} cxd5 {[%emt 0:00:09]} 11. Bd2 {[%emt 0:00:06]} Qxe5 {[%emt 0:02:32]} 12. Rc1 {[%emt 0:02:11]} Bd7 {[%emt 0:00:59]} 13. Qb6 {[%emt 0:17:48]} e6 {[%emt 0:03:56]} 14. Rc7 {[%emt 0:09:02]} Bc8 {[%emt 0:19:04]} 15. Bxa6 {[%emt 0:10:51]} Bd6 {[%emt 0:21:59]} 16. Bb5+ {[%emt 0:34:10]} Kf8 {[%emt 0:00:08]} 17. Rc2 {[%emt 0:01:53]} Ke7 {[%emt 0:04:51]} 18. Ke2 {[%emt 0:10:36]} Rd8 {[%emt 0:05:56]} 19. Rhc1 {[%emt 0:03:44]} Bd7 {[%emt 0:03:06]} 20. f4 {[%emt 0:02:28]} Qe4 {[%emt 0:05:45]} 21. Kf2 {[%emt 0:00:03]} Bxb5 {[%emt 0:02:01]} 22. Qxb5 {[%emt 0:00:04]} Rd7 {[%emt 0:00:08]} 23. a3 {[%emt 0:01:02]} g5 {[%emt 0:06:07]} 24. fxg5 {[%emt 0:01:13]} Qh4+ {[%emt 0:04:22]} 25. Kf1 {[%emt 0:00:04]} Qxh2 {[%emt 0:00:08]} 26. Bb4 {[%emt 0:00:12]} Qh1+ {[%emt 0:01:37]} 27. Kf2 {[%emt 0:00:02]} Qh4+ {[%emt 0:00:10]} 28. Kg1 {[%emt 0:01:53]} Qh2+ {[%emt 0:03:24]} 29. Kf1 {[%emt 0:00:05]} Qh1+ {[%emt 0:00:06]} 30. Kf2 {[%emt 0:00:02]} Qh4+ {[%emt 0:00:06]} 31. Kg1 {[%emt 0:00:24]} Bxb4 {[%emt 0:00:34]} 32. axb4 {[%emt 0:00:04]} Qxg5 {[%emt 0:00:26]} 33. Qc5+ {[%emt 0:00:06]} Kf6 {[%emt 0:02:18]} 34. b5 {[%emt 0:00:10]} Kg7 {[%emt 0:02:00]} 35. b6 {[%emt 0:00:27]} Rad8 {[%emt 0:01:15]} 36. Rc3 {[%emt 0:02:34]} h6 {[%emt 0:01:01]} 37. Rf1 {[%emt 0:00:44]} f5 {[%emt 0:04:08]} 38. Qd4+ {[%emt 0:00:05]} Qf6 {[%emt 0:00:20]} 39. Qf4 {[%emt 0:00:07]} d4 {[%emt 0:00:44]} 40. Rc7 {[%emt 0:00:00]} d3 {[%emt 0:00:00]} 41. Qd6 {[%emt 0:06:44]} Qf7 {[%emt 0:05:24]} 42. Qe5+ {[%emt 0:00:35]} Qf6 {[%emt 0:10:03]} 43. Qd6 {[%emt 0:00:05]} Qf7 {[%emt 0:00:05]} 44. Qe5+ {[%emt 0:00:03]} Qf6 {[%emt 0:00:04]} 45. Qd6 {[%emt 0:00:21]} 1/2-1/2

[Event "Mitropa Cup Open 2019"]
[Site "Radenci"]
[Date "2019.05.30"]
[Round "4.6"]
[White "Kovacevic, Blazimir"]
[Black "Markoja, Boris"]
[Result "1-0"]
[ECO "A36"]
[WhiteElo "2456"]
[BlackElo "2441"]
[Annotator "ChessBase"]
[PlyCount "61"]
[EventDate "2019.05.27"]
[EventType "team-tourn"]
[EventCountry "SLO"]
[SourceTitle "playchess.com"]
[Source "ChessBase"]
[SourceQuality "1"]
[WhiteTeam "Croatia"]
[BlackTeam "Slovenia"]
[WhiteTeamCountry "CRO"]
[BlackTeamCountry "SLO"]
[TimeControl "40/5400+30:1800+30"]

1. c4 {[%emt 0:00:00]} c5 {[%emt 0:00:00]} 2. g3 {[%emt 0:00:22]} g6 {[%emt 0:00:00]} 3. Bg2 {[%emt 0:00:04]} Bg7 {[%emt 0:00:02]} 4. Nc3 {[%emt 0:00:06]} Nc6 {[%emt 0:00:18]} 5. b3 {[%emt 0:00:06]} d6 {[%emt 0:02:46]} 6. Bb2 {[%emt 0:00:14]} e5 {[%emt 0:01:53]} 7. e3 {[%emt 0:00:13]} Nge7 {[%emt 0:00:37]} 8. Nge2 {[%emt 0:00:09]} O-O {[%emt 0:01:57]} 9. d3 {[%emt 0:00:56]} Bf5 {[%emt 0:03:19]} 10. Qd2 {[%emt 0:02:12]} Qd7 {[%emt 0:11:36]} 11. h4 {[%emt 0:03:29]} h5 {[%emt 0:10:07]} 12. Ne4 {[%emt 0:15:09]} f6 {[%emt 0:04:14]} 13. O-O {[%emt 0:18:12]} Rad8 {[%emt 0:04:50]} 14. Kh2 {[%emt 0:04:36]} b6 {[%emt 0:04:11]} 15. N4c3 {[%emt 0:04:36]} Bh6 {[%emt 0:02:41]} 16. f4 {[%emt 0:07:05]} g5 {[%emt 0:14:39]} 17. fxg5 {[%emt 0:05:12]} fxg5 {[%emt 0:00:10]} 18. e4 {[%emt 0:00:06]} Bg4 {[%emt 0:00:20]} 19. hxg5 {[%emt 0:00:52]} Bg7 {[%emt 0:00:07]} 20. Nd5 {[%emt 0:09:36]} Nxd5 {[%emt 0:01:29]} 21. exd5 {[%emt 0:00:13]} Nd4 {[%emt 0:00:46]} 22. Ng1 {[%emt 0:07:42]} e4 {[%emt 0:09:05]} 23. Bxe4 {[%emt 0:00:18]} Be5 {[%emt 0:00:34]} 24. g6 {[%emt 0:09:20]} h4 {[%emt 0:00:56]} 25. Rf7 {[%emt 0:02:30]} hxg3+ {[%emt 0:07:32]} 26. Kg2 {[%emt 0:00:06]} Rxf7 {[%emt 0:01:41]} 27. gxf7+ {[%emt 0:00:05]} Kf8 {[%emt 0:00:02]} 28. Qg5 {[%emt 0:03:24]} Bg7 {[%emt 0:02:11]} 29. Rf1 {[%emt 0:02:54]} Rb8 {[%emt 0:00:29]} 30. Bxd4 {[%emt 0:01:35]} cxd4 {[%emt 0:00:11]} 31. Qg6 {[%emt 0:01:15]} 1-0

[Event "Mitropa Cup Open 2019"]
[Site "Radenci"]
[Date "2019.05.30"]
[Round "4.7"]
[White "Janzelj, Tim"]
[Black "Tica, Sven"]
[Result "1-0"]
[ECO "A13"]
[WhiteElo "2384"]
[BlackElo "2417"]
[Annotator "ChessBase"]
[PlyCount "85"]
[EventDate "2019.05.27"]
[EventType "team-tourn"]
[EventCountry "SLO"]
[SourceTitle "playchess.com"]
[Source "ChessBase"]
[SourceQuality "1"]
[WhiteTeam "SLO"]
[BlackTeam "CRO"]
[BlackTeamCountry "CRO"]
[TimeControl "40/5400+30:1800+30"]

1. Nf3 {[%emt 0:00:00]} Nf6 {[%emt 0:00:00]} 2. c4 {[%emt 0:00:00]} e6 {[%emt 0:00:00]} 3. g3 {[%emt 0:00:00]} a6 {[%emt 0:00:08]} 4. Bg2 {[%emt 0:01:46]} b5 {[%emt 0:00:09]} 5. b3 {[%emt 0:05:36]} Bb7 {[%emt 0:00:12]} 6. O-O {[%emt 0:00:32]} c5 {[%emt 0:00:16]} 7. Na3 {[%emt 0:06:16]} Qb6 {[%emt 0:00:28]} 8. Bb2 {[%emt 0:01:54]} Be7 {[%emt 0:00:17]} 9. e3 {[%emt 0:00:59]} O-O {[%emt 0:01:40]} 10. Qe2 {[%emt 0:00:27]} b4 {[%emt 0:01:36]} 11. Nc2 {[%emt 0:00:10]} d6 {[%emt 0:01:36]} 12. d3 {[%emt 0:06:01]} Nbd7 {[%emt 0:07:56]} 13. e4 {[%emt 0:00:54]} a5 {[%emt 0:03:36]} 14. a4 {[%emt 0:01:39]} Rad8 {[%emt 0:11:52]} 15. Nd2 {[%emt 0:01:59]} Qc7 {[%emt 0:11:04]} 16. f4 {[%emt 0:02:05]} Ne8 {[%emt 0:02:49]} 17. g4 {[%emt 0:09:56]} Bf6 {[%emt 0:03:28]} 18. Bxf6 {[%emt 0:00:14]} Ndxf6 {[%emt 0:04:01]} 19. g5 {[%emt 0:00:29]} Nd7 {[%emt 0:00:04]} 20. Qh5 {[%emt 0:12:21]} f5 {[%emt 0:07:13]} 21. Rae1 {[%emt 0:07:39]} g6 {[%emt 0:00:57]} 22. Qh3 {[%emt 0:08:06]} Ng7 {[%emt 0:00:59]} 23. exf5 {[%emt 0:01:26]} Bxg2 {[%emt 0:02:08]} 24. Qxg2 {[%emt 0:00:06]} gxf5 {[%emt 0:06:08]} 25. h4 {[%emt 0:02:50]} Rfe8 {[%emt 0:01:38]} 26. Qf3 {[%emt 0:01:57]} Nf8 {[%emt 0:00:31]} 27. h5 {[%emt 0:00:12]} Qf7 {[%emt 0:05:15]} 28. h6 {[%emt 0:00:26]} Nh5 {[%emt 0:00:11]} 29. Ne3 {[%emt 0:03:21]} Qg6 {[%emt 0:06:19]} 30. Ng2 {[%emt 0:05:19]} e5 {[%emt 0:02:50]} 31. Nh4 {[%emt 0:03:56]} Qf7 {[%emt 0:00:06]} 32. fxe5 {[%emt 0:00:10]} dxe5 {[%emt 0:00:06]} 33. Ne4 {[%emt 0:03:21]} Kh8 {[%emt 0:06:53]} 34. Nxf5 {[%emt 0:02:19]} Re6 {[%emt 0:00:51]} 35. Nfd6 {[%emt 0:03:39]} Qxf3 {[%emt 0:02:19]} 36. Rxf3 {[%emt 0:00:02]} Kg8 {[%emt 0:00:12]} 37. Nb7 {[%emt 0:00:16]} Rc8 {[%emt 0:00:07]} 38. Nbxc5 {[%emt 0:01:37]} Rg6 {[%emt 0:00:50]} 39. Rf5 {[%emt 0:02:36]} Rgc6 {[%emt 0:04:16]} 40. Rxe5 {[%emt 0:00:00]} Ng6 {[%emt 0:00:00]} 41. Rf5 {[%emt 0:03:02]} Nh4 {[%emt 0:01:07]} 42. Rf2 {[%emt 0:00:17]} Re8 {[%emt 0:00:15]} 43. Ref1 {[%emt 0:04:40]} 1-0